bitfinex/quotes_BTCUSD_20230904
["timestamp","ask_amount","ask_price","bid_price","bid_amount"]
[1693862315021,0.001,25732.0,25731.0,0.07629228]
[1693862315347,0.001,25732.0,25731.0,0.08129228]
[1693862316565,0.001,25732.0,25731.0,0.46793755]
[1693862316773,0.09137162,25737.0,25731.0,0.76793755]
[1693862316944,0.09137162,25738.0,25732.0,0.66274514]
[1693862317292,0.08637162,25738.0,25732.0,0.66274514]
[1693862317498,0.1516793,25739.0,25732.0,0.66274514]
[1693862317703,0.0146,25739.0,25733.0,0.13277974]
[1693862317875,0.001,25737.0,25734.0,0.56130338]
[1693862318081,0.001,25737.0,25734.0,0.40664527]
[1693862318283,0.29607677,25737.0,25734.0,0.02]
[1693862318490,0.001,25737.0,25735.0,0.38664527]
[1693862318646,0.001,25737.0,25736.0,0.02]
[1693862318848,0.0146,25739.0,25736.0,0.40664527]
[1693862319059,0.0146,25739.0,25737.0,0.38664527]
[1693862319271,0.0146,25739.0,25738.0,0.02]
[1693862319469,0.0146,25739.0,25738.0,0.07813034]
[1693862320140,0.0236,25739.0,25738.0,0.07813034]
[1693862320576,0.0146,25739.0,25738.0,0.02]
[1693862321351,0.0146,25739.0,25737.0,0.003]
[1693862321553,0.15609784,25739.0,25734.0,0.18083915]
[1693862321753,0.43620353,25739.0,25734.0,0.18083915]
[1693862322005,0.43620353,25739.0,25735.0,0.04064391]
[1693862322247,0.28970569,25739.0,25735.0,0.04064391]
[1693862322461,0.1614,25737.0,25734.0,0.155417]
[1693862322676,0.1614,25735.0,25729.0,0.2461]
[1693862322886,0.14149784,25734.0,25729.0,0.12353]
[1693862323535,0.26571672,25733.0,25729.0,0.278975]
[1693862323729,0.40721456,25733.0,25729.0,0.278975]
[1693862324358,0.26571672,25733.0,25729.0,0.278975]
[1693862324575,0.26571672,25733.0,25729.0,0.302975]
[1693862324812,0.26571672,25733.0,25730.0,0.0549075]
[1693862325440,0.26771672,25733.0,25730.0,0.0549075]
[1693862325849,0.002,25734.0,25730.0,0.0549075]
[1693862326077,0.24218396,25733.0,25730.0,0.0679075]
[1693862326486,0.04218396,25733.0,25730.0,0.0679075]
[1693862326697,0.04218396,25733.0,25731.0,0.03468825]
[1693862326698,0.04418396,25733.0,25731.0,0.03468825]
[1693862327205,0.04218396,25733.0,25731.0,0.03468825]
[1693862327625,0.04318396,25733.0,25731.0,0.03468825]
[1693862327962,0.04118396,25733.0,25731.0,0.03468825]
[1693862328181,0.04218396,25733.0,25731.0,0.04368825]
[1693862328620,0.2315728,25732.0,25731.0,0.04368825]
[1693862328844,0.2315728,25732.0,25731.0,0.04768825]
[1693862329495,0.2315728,25732.0,25731.0,0.03868825]
[1693862329692,0.2325728,25732.0,25731.0,0.04768825]
[1693862330592,0.2325728,25732.0,25731.0,0.04368825]
[1693862330767,0.001,25732.0,25731.0,0.04368825]
[1693862330967,0.001,25732.0,25731.0,0.04768825]
[1693862331422,0.001,25732.0,25731.0,0.06768825]
[1693862333421,0.001,25732.0,25731.0,0.11039299]
[1693862333971,0.0146,25739.0,25731.0,0.91573352]
[1693862334175,0.0146,25739.0,25732.0,0.71346823]
[1693862334360,0.15609784,25739.0,25732.0,0.71188895]
[1693862334565,0.22281822,25737.0,25733.0,0.2292]
[1693862334718,0.22281822,25737.0,25734.0,0.1141089]
[1693862334979,0.26318785,25736.0,25734.0,0.1141089]
[1693862336006,0.26318785,25736.0,25734.0,0.0941089]
[1693862336217,0.0276,25739.0,25734.0,0.05078374]
[1693862336425,0.0276,25739.0,25733.0,0.2292]
[1693862336426,0.0276,25739.0,25735.0,0.5901681]
[1693862336632,0.0146,25739.0,25735.0,0.17465811]
[1693862336837,0.0146,25739.0,25735.0,0.02]
[1693862337044,0.022,25737.0,25735.0,0.02]
[1693862337251,0.018,25736.0,25735.0,0.04919044]
[1693862337454,0.018,25736.0,25735.0,0.05119044]
[1693862337661,0.0396,25739.0,25735.0,0.05119044]
[1693862337867,0.0146,25739.0,25735.0,0.04919044]
[1693862338084,0.025,25737.0,25735.0,0.05319044]
[1693862338287,0.0396,25739.0,25735.0,0.05119044]
[1693862338496,0.0396,25739.0,25735.0,0.24041985]
[1693862338734,0.0646,25739.0,25736.0,0.02404199]
[1693862338939,0.0646,25739.0,25737.0,0.02]
[1693862339139,0.0646,25739.0,25736.0,0.04103589]
[1693862339342,0.0396,25739.0,25737.0,0.02]
[1693862339961,0.0146,25739.0,25737.0,0.02]
[1693862340604,0.0396,25739.0,25737.0,0.09764474]
[1693862341092,0.0646,25739.0,25737.0,0.09964474]
[1693862342730,0.30987766,25739.0,25737.0,0.09964474]
[1693862343825,0.25987766,25739.0,25737.0,0.061036]
[1693862344029,0.64894311,25738.0,25737.0,0.049036]
[1693862344241,0.135108,25736.0,25730.0,0.2269]
[1693862344447,0.1208,25733.0,25728.0,0.3]
[1693862344661,0.14149784,25732.0,25729.0,0.12892]
[1693862345267,0.01919866,25731.0,25730.0,0.024]
[1693862345857,0.1208,25733.0,25730.0,0.165498]
[1693862346628,0.001,25731.0,25730.0,0.157498]
[1693862346828,0.001,25731.0,25730.0,0.2088298]
[1693862347148,0.1208,25733.0,25730.0,0.19245951]
[1693862347350,0.1228,25733.0,25730.0,0.22045951]
[1693862347526,0.1218,25733.0,25730.0,0.20845951]
[1693862347732,0.1218,25733.0,25731.0,0.02084595]
[1693862347938,0.001,25733.0,25731.0,0.02084595]
[1693862349462,0.001,25733.0,25732.0,0.06787249]
[1693862350238,0.09185386,25735.0,25732.0,0.06787249]
[1693862351095,0.005,25733.0,25732.0,0.60917587]
[1693862351295,0.36404116,25736.0,25732.0,0.45451776]
[1693862351499,0.36404116,25736.0,25732.0,0.60917587]
[1693862351668,0.002,25733.0,25732.0,0.60917587]
[1693862351871,0.005,25735.0,25732.0,0.45080927]
[1693862352077,0.005,25735.0,25733.0,0.47128456]
[1693862352301,0.005,25735.0,25734.0,0.02]
[1693862352501,0.005,25735.0,25734.0,0.40664527]
[1693862352880,0.135108,25736.0,25734.0,0.40664527]
[1693862353079,0.22696186,25736.0,25734.0,0.40664527]
[1693862353287,0.22696186,25736.0,25735.0,0.04912846]
[1693862353497,0.22696186,25736.0,25735.0,0.45577373]
[1693862354114,0.22896186,25736.0,25735.0,0.45577373]
[1693862354312,0.36604116,25736.0,25735.0,0.45577373]
[1693862354523,0.36404116,25736.0,25735.0,0.45577373]
[1693862354723,0.36504116,25736.0,25735.0,0.50894213]
[1693862354918,0.36704116,25736.0,25735.0,0.50894213]
[1693862355318,0.2731873,25736.0,25735.0,0.50894213]
[1693862355538,0.2731873,25736.0,25735.0,0.08112846]
[1693862355750,0.2741873,25736.0,25735.0,0.09712846]
[1693862355954,0.31965739,25736.0,25735.0,0.09712846]
[1693862356124,0.45827865,25736.0,25735.0,0.09712846]
[1693862356797,0.55129184,25736.0,25735.0,0.09712846]
[1693862357012,0.77947857,25736.0,25735.0,0.07712846]
[1693862357152,1.05614864,25736.0,25735.0,0.07712846]
[1693862358701,0.82451419,25736.0,25735.0,0.07712846]
[1693862358942,0.46064871,25736.0,25735.0,0.13602927]
[1693862359095,0.32198774,25736.0,25735.0,0.13602927]
[1693862359295,0.27577151,25736.0,25735.0,0.13602927]
[1693862359898,0.27577151,25736.0,25735.0,0.07712846]
[1693862360470,0.32198774,25736.0,25735.0,0.028]
[1693862360584,0.53906958,25736.0,25735.0,0.028]
[1693862360787,0.9924754,25736.0,25735.0,0.028]
[1693862360996,1.22066213,25736.0,25735.0,0.028]
[1693862361198,1.21966213,25736.0,25735.0,0.012]
[1693862361418,1.22066213,25736.0,25735.0,0.028]
[1693862361630,0.9914754,25736.0,25735.0,0.016]
[1693862361833,0.9904754,25736.0,25731.0,0.32084595]
[1693862362075,0.09245344,25734.0,25732.0,0.04619737]
[1693862362279,0.24238359,25733.0,25732.0,0.04619737]
[1693862362476,0.24238359,25733.0,25731.0,0.02084595]
[1693862363491,0.24238359,25733.0,25732.0,0.003]
[1693862363694,0.24238359,25733.0,25731.0,0.02084595]
[1693862363892,0.24338359,25733.0,25731.0,0.04884595]
[1693862364475,0.24338359,25733.0,25731.0,0.03284595]
[1693862364649,0.002,25733.0,25732.0,0.007]
[1693862364828,0.002,25733.0,25732.0,0.05208606]
[1693862365034,0.002,25733.0,25732.0,0.09469203]
[1693862365260,0.002,25733.0,25732.0,0.08769203]
[1693862365261,0.001,25733.0,25732.0,0.08769203]
[1693862365460,0.002,25733.0,25732.0,0.08769203]
[1693862366320,0.001,25733.0,25732.0,0.08769203]
[1693862366712,0.001,25733.0,25732.0,0.09069203]
[1693862366920,0.24955344,25737.0,25732.0,0.09069203]
[1693862367251,0.24955344,25737.0,25733.0,0.02]
[1693862367583,0.51076012,25737.0,25733.0,0.08241533]
[1693862367698,0.51076012,25737.0,25733.0,0.29268032]
[1693862367902,0.51176012,25737.0,25733.0,0.29268032]
[1693862368319,0.35466012,25737.0,25733.0,0.29268032]
[1693862368589,0.35366012,25737.0,25733.0,0.29268032]
[1693862368781,0.23128047,25736.0,25734.0,0.03182863]
[1693862369684,0.23128047,25736.0,25734.0,0.0761574]
[1693862370241,0.25528047,25736.0,25734.0,0.0781574]
[1693862374816,0.024,25736.0,25734.0,0.0781574]
[1693862375021,0.024,25736.0,25735.0,0.03336574]
[1693862375967,0.01,25736.0,25735.0,0.03336574]
[1693862376417,0.033,25736.0,25735.0,0.03536574]
[1693862376637,0.023,25736.0,25735.0,0.03536574]
[1693862376841,0.042,25736.0,25735.0,0.03736574]
[1693862380567,0.042,25736.0,25735.0,0.07752673]
[1693862381359,0.042,25736.0,25735.0,0.09752673]
[1693862383406,0.09245344,25741.0,25735.0,0.59866912]
[1693862383634,0.09245344,25745.0,25740.0,0.19423]
[1693862383850,0.0196,25746.0,25743.0,0.1208]
[1693862384056,0.0196,25746.0,25744.0,0.15465811]
[1693862384307,0.0196,25746.0,25745.0,0.02754581]
[1693862384932,0.0196,25746.0,25745.0,0.18290681]
[1693862385064,0.0196,25746.0,25745.0,0.20290681]
[1693862385515,0.0196,25746.0,25745.0,0.24013574]
[1693862385930,0.0196,25746.0,25745.0,0.26513574]
[1693862386722,0.0206,25746.0,25745.0,0.26513574]
[1693862387397,0.0196,25746.0,25745.0,0.26513574]
[1693862387526,0.0206,25746.0,25745.0,0.29013574]
[1693862387734,0.0206,25746.0,25745.0,0.41093574]
[1693862388757,0.0206,25746.0,25745.0,0.76035208]
[1693862388956,0.0206,25746.0,25745.0,0.79954977]
[1693862393270,0.0206,25746.0,25745.0,0.76035208]
[1693862393475,0.0206,25746.0,25745.0,0.79926561]
[1693862394226,0.0206,25746.0,25745.0,0.225361]
[1693862394227,0.16209784,25746.0,25745.0,0.225361]
[1693862394436,0.66954311,25746.0,25745.0,0.205361]
[1693862394613,0.39398323,25746.0,25745.0,0.05]
[1693862394820,0.27318323,25746.0,25745.0,0.05]
[1693862395239,0.27318323,25746.0,25745.0,0.0705376]
[1693862403049,0.1414,25746.0,25745.0,0.05]
[1693862403253,0.52804527,25746.0,25745.0,0.05]
[1693862403458,0.77258934,25746.0,25745.0,0.05]
[1693862404035,0.77158934,25746.0,25745.0,0.025]
[1693862404241,0.77258934,25746.0,25745.0,0.025]
[1693862404483,0.77258934,25746.0,25745.0,0.032]
[1693862404909,0.77258934,25746.0,25745.0,0.007]
[1693862404910,0.26414407,25746.0,25745.0,0.007]
[1693862405125,0.26514407,25746.0,25745.0,0.017]
[1693862406158,0.24554407,25746.0,25745.0,0.017]
[1693862411061,0.64994311,25746.0,25745.0,0.017]
[1693862411276,0.74549577,25746.0,25745.0,0.017]
[1693862411678,0.50844527,25746.0,25745.0,0.017]
[1693862412083,0.7023088,25746.0,25745.0,0.017]
[1693862413143,0.7013088,25746.0,25745.0,0.007]
[1693862413287,0.7013088,25746.0,25745.0,0.001]
[1693862413486,0.7083088,25746.0,25745.0,0.003]
[1693862413754,0.7083088,25746.0,25745.0,0.002]
[1693862414153,0.7223088,25746.0,25745.0,0.004]
[1693862414771,0.33566353,25746.0,25745.0,0.004]
[1693862426666,0.21486353,25746.0,25745.0,0.004]
[1693862427904,0.30731697,25746.0,25745.0,0.004]
[1693862428895,0.35354369,25746.0,25745.0,0.004]
[1693862429721,0.47434369,25746.0,25745.0,0.004]
[1693862429922,0.52054327,25746.0,25745.0,0.004]
[1693862430696,0.6595221,25746.0,25745.0,0.004]
[1693862431124,0.52054327,25746.0,25745.0,0.004]
[1693862431485,0.65951404,25746.0,25745.0,0.004]
[1693862432743,0.70685767,25746.0,25745.0,0.004]
[1693862433877,0.52197793,25746.0,25745.0,0.004]
[1693862436609,0.6145911,25746.0,25745.0,0.004]
[1693862437830,0.47562033,25746.0,25745.0,0.004]
[1693862438616,0.47549148,25746.0,25745.0,0.004]
[1693862442229,0.71475967,25746.0,25745.0,0.004]
[1693862442437,0.89963941,25746.0,25745.0,0.004]
[1693862442643,2.83235786,25746.0,25745.0,0.004]
[1693862442840,3.00546938,25746.0,25745.0,0.004]
[1693862443043,3.57361073,25746.0,25745.0,0.004]
[1693862443220,3.57319073,25746.0,25745.0,0.004]
[1693862443417,3.57559073,25746.0,25745.0,0.004]
[1693862443664,3.57625073,25746.0,25745.0,0.004]
[1693862444018,3.66296946,25746.0,25737.0,0.00018874]
[1693862444235,0.1208,25738.0,25737.0,0.15484685]
[1693862444364,0.26229784,25738.0,25737.0,0.00018874]
[1693862444565,0.1208,25738.0,25737.0,0.00018874]
[1693862444797,0.1208,25738.0,25735.0,0.12652025]
[1693862445002,0.1208,25737.0,25736.0,0.0266252]
[1693862445481,0.1208,25737.0,25735.0,0.03336574]
[1693862446643,0.1228,25737.0,25735.0,0.05736574]
[1693862446817,0.37638341,25737.0,25735.0,0.05736574]
[1693862447022,0.37638341,25737.0,25735.0,0.024]
[1693862447218,0.37750206,25737.0,25735.0,0.048]
[1693862447643,0.04451668,25736.0,25735.0,0.048]
[1693862448641,0.04451668,25736.0,25735.0,0.024]
[1693862448846,0.04651668,25736.0,25735.0,0.048]
[1693862449053,0.04651668,25736.0,25735.0,0.024]
[1693862449293,0.04851668,25736.0,25735.0,0.048]
[1693862450630,0.24915485,25736.0,25735.0,0.048]
[1693862453002,0.20463817,25736.0,25735.0,0.048]
[1693862453464,0.32543817,25736.0,25735.0,0.048]
[1693862453675,0.16932283,25736.0,25735.0,0.048]
[1693862454086,0.1248,25736.0,25735.0,0.048]
[1693862455400,0.1248,25736.0,25735.0,0.08653213]
[1693862455605,0.1248,25736.0,25735.0,0.10908224]
[1693862456018,0.73199768,25736.0,25735.0,0.048]
[1693862456197,0.85279768,25736.0,25735.0,0.048]
[1693862456471,0.89732553,25736.0,25735.0,0.048]
[1693862457089,0.89532553,25736.0,25735.0,0.024]
[1693862458106,0.89332553,25736.0,25730.0,0.517346]
[1693862458310,0.1208,25732.0,25730.0,0.55938923]
[1693862458510,0.26229784,25732.0,25730.0,0.35938923]
[1693862458663,0.1208,25732.0,25730.0,0.35938923]
[1693862458867,0.1208,25733.0,25731.0,0.13485892]
[1693862459081,0.38664527,25735.0,25731.0,0.13485892]
[1693862459082,0.1208,25735.0,25731.0,0.13485892]
[1693862459279,0.39788026,25736.0,25731.0,0.28951703]
[1693862459636,0.002,25732.0,25731.0,0.28951703]
[1693862459845,0.17732785,25736.0,25731.0,0.13485892]
[1693862460092,0.1208,25736.0,25732.0,0.0668963]
[1693862460297,0.002,25733.0,25732.0,0.22155441]
[1693862460503,0.0451251,25735.0,25732.0,0.0668963]
[1693862460703,0.1208,25736.0,25733.0,0.02017552]
[1693862460907,0.1208,25739.0,25734.0,0.02]
[1693862461115,0.1208,25739.0,25735.0,0.15465811]
[1693862461567,0.0451251,25738.0,25735.0,0.15465811]
[1693862461721,0.0451251,25738.0,25734.0,0.02]
[1693862461722,0.002,25736.0,25734.0,0.02]
[1693862461924,0.1208,25737.0,25734.0,0.0834605]
[1693862462305,0.04491762,25736.0,25734.0,0.0834605]
[1693862462503,0.04491762,25736.0,25735.0,0.001]
[1693862462727,0.1208,25737.0,25735.0,0.002]
[1693862462932,0.1208,25737.0,25734.0,0.0834605]
[1693862463142,0.04491762,25736.0,25734.0,0.0844605]
[1693862463484,0.1318,25737.0,25734.0,0.0844605]
[1693862463685,0.1248,25737.0,25735.0,0.04488803]
[1693862463903,0.04491762,25736.0,25735.0,0.04488803]
[1693862464521,0.1248,25737.0,25735.0,0.04488803]
[1693862464732,0.1208,25737.0,25735.0,0.04488803]
[1693862464939,0.1208,25737.0,25735.0,0.04588803]
[1693862464940,0.05046703,25736.0,25735.0,0.04588803]
[1693862465148,0.05046703,25736.0,25735.0,0.04488803]
[1693862465328,0.1208,25737.0,25735.0,0.04488803]
[1693862465566,0.02,25736.0,25735.0,0.04588803]
[1693862465976,0.1368,25736.0,25735.0,0.04588803]
[1693862466189,0.1368,25736.0,25735.0,0.04488803]
[1693862466190,0.1208,25736.0,25735.0,0.04488803]
[1693862466394,0.1328,25736.0,25735.0,0.04588803]
[1693862466621,0.1328,25736.0,25735.0,0.04788803]
[1693862466825,0.1328,25736.0,25735.0,0.04588803]
[1693862467462,0.18327559,25736.0,25735.0,0.04588803]
[1693862467754,0.56992086,25736.0,25735.0,0.001]
[1693862468173,0.56992086,25736.0,25735.0,0.002]
[1693862468174,0.58592086,25736.0,25735.0,0.002]
[1693862468581,0.81855389,25736.0,25735.0,0.002]
[1693862475085,0.24179122,25735.0,25732.0,0.0463529]
[1693862475289,0.1208,25733.0,25729.0,0.196]
[1693862475516,0.26229784,25733.0,25730.0,0.06597]
[1693862475743,0.1208,25733.0,25727.0,0.496]
[1693862475962,0.14149784,25732.0,25728.0,0.02]
[1693862476319,0.14149784,25732.0,25728.0,0.17545]
[1693862476529,0.1208,25733.0,25729.0,0.367145]
[1693862476739,0.1208,25733.0,25729.0,0.1072021]
[1693862477738,0.1208,25733.0,25732.0,0.014]
[1693862478147,0.1228,25733.0,25730.0,0.024]
[1693862478353,0.17109385,25733.0,25729.0,0.1072021]
[1693862478560,0.1228,25733.0,25730.0,0.02826521]
[1693862478972,0.1208,25733.0,25730.0,0.02826521]
[1693862479100,0.1228,25733.0,25730.0,0.05226521]
[1693862479700,0.1228,25733.0,25730.0,0.09315054]
[1693862480734,0.078481,25733.0,25730.0,0.11715054]
[1693862482035,0.078481,25733.0,25731.0,0.03403632]
[1693862483668,0.074481,25733.0,25731.0,0.03403632]
[1693862483990,0.078481,25733.0,25731.0,0.07603632]
[1693862485484,0.078481,25733.0,25731.0,0.042]
[1693862485485,0.1208,25732.0,25731.0,0.042]
[1693862485683,0.38226669,25732.0,25731.0,0.042]
[1693862485891,0.43113721,25732.0,25731.0,0.042]
[1693862486515,0.81778248,25732.0,25731.0,0.042]
[1693862486776,0.81778248,25732.0,25726.0,0.32579622]
[1693862486777,0.81778248,25732.0,25726.0,0.00105462]
[1693862486953,0.41440962,25731.0,25726.0,0.10406705]
[1693862487173,0.1208,25729.0,25727.0,0.03766754]
[1693862487910,0.1208,25728.0,25727.0,0.03766754]
[1693862488518,0.1208,25728.0,25727.0,0.03966754]
[1693862488727,0.1208,25728.0,25727.0,0.04466754]
[1693862489194,0.1208,25728.0,25727.0,0.007]
[1693862489848,0.1208,25728.0,25727.0,0.005]
[1693862490172,0.1208,25728.0,25727.0,0.002]
[1693862490417,0.1218,25728.0,25727.0,0.007]
[1693862490607,0.50809518,25728.0,25727.0,0.007]
[1693862492583,0.55690992,25728.0,25727.0,0.007]
[1693862495265,0.75338686,25728.0,25727.0,0.007]
[1693862497398,0.95237751,25728.0,25727.0,0.007]
[1693862498035,0.87703882,25728.0,25727.0,0.007]
[1693862499250,0.67670992,25728.0,25727.0,0.002]
[1693862499451,0.92576463,25728.0,25727.0,0.004]
[1693862499818,0.69770992,25728.0,25727.0,0.002]
[1693862500803,0.72170992,25728.0,25727.0,0.004]
[1693862501204,0.98523188,25728.0,25727.0,0.004]
[1693862501411,0.72170992,25728.0,25727.0,0.004]
[1693862502353,1.07264351,25728.0,25727.0,0.004]
[1693862502493,0.72170992,25728.0,25727.0,0.004]
[1693862505202,1.49907292,25728.0,25727.0,0.004]
[1693862505957,3.45903892,25728.0,25727.0,0.004]
[1693862506167,3.46305892,25728.0,25727.0,0.004]
[1693862506377,3.84706419,25728.0,25727.0,0.004]
[1693862506591,3.84682419,25728.0,25727.0,0.004]
[1693862506813,3.82576419,25728.0,25727.0,0.002]
[1693862507012,3.81916419,25728.0,25727.0,0.001]
[1693862507215,3.81904419,25728.0,25727.0,0.001]
[1693862507420,3.85228419,25728.0,25727.0,0.002]
[1693862507551,3.98176419,25728.0,25727.0,0.001]
[1693862507760,4.00228419,25728.0,25727.0,0.002]
[1693862507961,4.00180419,25728.0,25727.0,0.002]
[1693862508232,3.95578419,25728.0,25717.0,0.2015]
[1693862508408,0.1208,25719.0,25717.0,0.35615811]
[1693862508621,0.14149784,25718.0,25717.0,0.2015]
[1693862508772,0.14149784,25718.0,25715.0,0.155537]
[1693862508969,0.14149784,25718.0,25715.0,0.21496543]
[1693862509389,0.1208,25719.0,25717.0,0.001]
[1693862509796,0.50744527,25719.0,25715.0,0.155537]
[1693862510002,0.1208,25716.0,25713.0,0.22305116]
[1693862510213,0.14149784,25716.0,25715.0,0.024]
[1693862510502,0.1208,25716.0,25715.0,0.05237025]
[1693862510730,0.1208,25716.0,25715.0,0.06737025]
[1693862511211,0.1208,25716.0,25715.0,0.05237025]
[1693862511411,0.1208,25716.0,25715.0,0.04337025]
[1693862511622,0.1208,25716.0,25715.0,0.05237025]
[1693862511827,0.1228,25716.0,25715.0,0.06737025]
[1693862512028,0.1228,25716.0,25715.0,0.05837025]
[1693862512239,0.002,25716.0,25715.0,0.06106288]
[1693862512468,0.005,25716.0,25715.0,0.07006288]
[1693862512675,0.005,25716.0,25715.0,0.0451714]
[1693862513077,0.005,25716.0,25715.0,0.08386717]
[1693862515700,0.005,25716.0,25715.0,0.0451714]
[1693862515941,0.005,25716.0,25715.0,0.0827138]
[1693862516145,0.005,25716.0,25715.0,0.0615424]
[1693862517855,0.005,25716.0,25715.0,0.024]
[1693862519630,0.005,25716.0,25715.0,0.044]
[1693862519837,0.1208,25721.0,25715.0,0.43064527]
[1693862520036,0.1208,25722.0,25716.0,0.17465811]
[1693862520272,0.1208,25722.0,25717.0,0.07261034]
[1693862520449,0.1208,25722.0,25718.0,0.15465811]
[1693862520739,0.04860135,25721.0,25718.0,0.15465811]
[1693862520958,0.05060135,25721.0,25719.0,0.04635715]
[1693862523217,0.05060135,25721.0,25718.0,0.1208]
[1693862523422,0.05960135,25721.0,25719.0,0.021]
[1693862523622,0.05960135,25721.0,25719.0,0.04902903]
[1693862523974,0.1208,25725.0,25719.0,0.04802903]
[1693862524206,0.007,25721.0,25720.0,0.15465811]
[1693862524410,0.007,25721.0,25720.0,0.02]
[1693862524411,0.002,25721.0,25720.0,0.02]
[1693862524842,0.1208,25725.0,25720.0,0.02]
[1693862525057,0.002,25725.0,25721.0,0.29545811]
[1693862525639,0.002,25725.0,25721.0,0.2616]
[1693862525866,0.002,25725.0,25721.0,0.41625811]
[1693862526143,0.002,25725.0,25721.0,0.2616]
[1693862526664,0.1208,25728.0,25721.0,0.2616]
[1693862526911,0.26229784,25728.0,25722.0,0.24379693]
[1693862527130,0.1208,25728.0,25722.0,0.24379693]
[1693862527384,0.05883385,25727.0,25722.0,0.24379693]
[1693862527633,0.001,25725.0,25722.0,0.08913882]
[1693862528044,0.26829784,25728.0,25722.0,0.08913882]
[1693862528256,0.26829784,25728.0,25723.0,0.05139388]
[1693862528429,0.26829784,25728.0,25723.0,0.20605199]
[1693862528430,0.1358,25728.0,25723.0,0.20605199]
[1693862528653,0.05883385,25727.0,25723.0,0.20605199]
[1693862528861,0.05883385,25727.0,25723.0,0.05139388]
[1693862529012,0.1448,25728.0,25724.0,0.02]
[1693862529216,0.1448,25728.0,25724.0,0.07112936]
[1693862529415,0.05883385,25726.0,25724.0,0.07112936]
[1693862529627,0.1358,25728.0,25724.0,0.07112936]
[1693862529823,0.1538,25728.0,25724.0,0.02]
[1693862530022,0.05885424,25727.0,25724.0,0.06373687]
[1693862530317,0.05885424,25727.0,25724.0,0.06599108]
[1693862530764,0.05885424,25727.0,25724.0,0.06699108]
[1693862531152,0.05885424,25727.0,25724.0,0.02]
[1693862531324,0.06485424,25727.0,25725.0,0.03957875]
[1693862532901,0.06485424,25727.0,25725.0,0.04057875]
[1693862532902,0.07385424,25727.0,25725.0,0.04057875]
[1693862533128,0.06785424,25727.0,25725.0,0.04057875]
[1693862533237,0.08285424,25727.0,25725.0,0.04157875]
[1693862534063,0.08285424,25727.0,25726.0,0.04083578]
[1693862535757,0.07385424,25727.0,25726.0,0.04083578]
[1693862535998,0.07685424,25727.0,25726.0,0.04283578]
[1693862536329,0.10085424,25727.0,25726.0,0.04483578]
[1693862537409,0.10085424,25727.0,25726.0,0.1448]
[1693862538038,0.042,25727.0,25726.0,0.166204]
[1693862538662,0.024,25727.0,25726.0,0.164204]
[1693862539073,0.002,25727.0,25726.0,0.178204]
[1693862539274,0.003,25727.0,25726.0,0.57584927]
[1693862539474,0.002,25727.0,25726.0,0.56484927]
[1693862539680,0.2788,25732.0,25727.0,0.04825552]
[1693862539885,0.1208,25732.0,25728.0,0.23436859]
[1693862540327,0.0586955,25731.0,25728.0,0.23436859]
[1693862540484,0.0586955,25731.0,25728.0,0.07971048]
[1693862541507,0.1208,25732.0,25728.0,0.07971048]
[1693862541923,0.1208,25732.0,25729.0,0.03614182]
[1693862542322,0.05863112,25731.0,25729.0,0.03614182]
[1693862542533,0.1288,25732.0,25729.0,0.03614182]
[1693862542726,0.1208,25731.0,25729.0,0.03614182]
[1693862542927,0.17946771,25731.0,25729.0,0.03614182]
[1693862543854,0.18846771,25731.0,25729.0,0.001]
[1693862544066,0.50744527,25730.0,25729.0,0.002]
[1693862544657,0.74323196,25730.0,25729.0,0.002]
[1693862545494,0.74323196,25730.0,25724.0,0.155483]
[1693862545713,0.1208,25728.0,25725.0,0.05068769]
[1693862546132,0.1208,25728.0,25724.0,0.155483]
[1693862546133,0.1208,25726.0,25722.0,0.9892]
[1693862546314,0.52814311,25725.0,25718.0,0.09315451]
[1693862546549,0.1208,25721.0,25720.0,0.155504]
[1693862546750,0.14149784,25721.0,25720.0,0.155504]
[1693862546953,0.1208,25723.0,25720.0,0.155504]
[1693862547160,0.3208489,25723.0,25720.0,0.155504]
[1693862547345,0.27037217,25722.0,25720.0,0.155504]
[1693862547503,0.27037217,25722.0,25718.0,0.024]
[1693862547705,0.41187001,25722.0,25718.0,0.06176863]
[1693862547930,0.27037217,25722.0,25718.0,0.06176863]
[1693862548127,0.1208,25721.0,25718.0,0.06176863]
[1693862548675,0.27037217,25722.0,25718.0,0.20128263]
[1693862549005,0.27037217,25722.0,25720.0,0.004]
[1693862549413,0.27037217,25722.0,25720.0,0.05070615]
[1693862549624,0.003,25721.0,25720.0,0.07590503]
[1693862549829,0.005,25721.0,25720.0,0.07590503]
[1693862550035,0.1228,25721.0,25720.0,0.07590503]
[1693862550232,0.1208,25721.0,25720.0,0.07590503]
[1693862550436,0.1208,25721.0,25720.0,0.08390503]
[1693862550640,0.1208,25721.0,25720.0,0.08790503]
[1693862551556,0.1208,25721.0,25720.0,0.07990503]
[1693862551785,0.1208,25721.0,25720.0,0.07590503]
[1693862551980,0.1218,25721.0,25720.0,0.08390503]
[1693862552183,0.1218,25721.0,25720.0,0.08790503]
[1693862552381,0.1208,25721.0,25720.0,0.07590503]
[1693862552918,0.18020557,25721.0,25720.0,0.08790503]
[1693862554198,0.05940557,25721.0,25720.0,0.08790503]
[1693862554608,0.05940557,25721.0,25720.0,0.05719888]
[1693862555080,0.001,25721.0,25720.0,0.05719888]
[1693862555665,0.09264641,25733.0,25720.0,0.94702415]
[1693862555894,0.156,25729.0,25723.0,0.1208]
[1693862556100,0.3035,25730.0,25724.0,0.15465811]
[1693862556101,0.1208,25730.0,25724.0,0.15465811]
[1693862556305,0.05840015,25728.0,25724.0,0.15465811]
[1693862556512,0.05840015,25728.0,25725.0,0.02754581]
[1693862556730,0.2712,25731.0,25725.0,0.32300392]
[1693862556938,0.1208,25731.0,25726.0,0.15465811]
[1693862557574,0.1448,25733.0,25727.0,0.07104033]
[1693862557779,0.1688,25733.0,25728.0,0.22797248]
[1693862558216,0.1938,25735.0,25729.0,0.02]
[1693862558217,0.1208,25734.0,25729.0,0.02]
[1693862558477,0.1208,25734.0,25730.0,0.15465811]
[1693862558675,0.002,25731.0,25730.0,0.15465811]